fUSD/lending_fUSD_20250126
["ID","MTS","AMOUNT","RATE_DAILY","PERIOD"]
[350444265,1737879502105,-562.56477191,0.00010958,2]
[350444266,1737879502128,-1529.31,0.00010958,2]
[350444267,1737879502259,-388.44896427,0.00010958,2]
[350444268,1737879502285,-1529.31,0.00010958,2]
[350444269,1737879502310,-1529.31,0.00010958,2]
[350444270,1737879502334,-1529.35778457,0.00010958,2]
[350444271,1737879502358,-500.0,0.00010958,2]
[350444272,1737879502381,-500.0,0.00010958,2]
[350444273,1737879502406,-500.0,0.00010958,2]
[350444274,1737879502434,-500.0,0.00010958,2]
[350444275,1737879502457,-500.0,0.00010958,2]
[350444276,1737879502482,-500.0,0.00010958,2]
[350444277,1737879502506,-500.0,0.00010958,2]
[350444278,1737879502532,-2759.51,0.00010958,2]
[350444279,1737879502559,-500.0,0.00010958,2]
[350444280,1737879502584,-2759.51,0.00010958,2]
[350444281,1737879502607,-500.0,0.00010958,2]
[350444282,1737879502633,-500.0,0.00010958,2]
[350444283,1737879502658,-2759.51,0.00010958,2]
[350444284,1737879502683,-500.0,0.00010958,2]
[350444285,1737879502713,-2759.51,0.00010958,2]
[350444286,1737879502737,-500.0,0.00010958,2]
[350444287,1737879502763,-2759.51,0.00010958,2]
[350444288,1737879502787,-500.0,0.00010958,2]
[350444289,1737879502812,-2759.51,0.00010958,2]
[350444290,1737879502837,-500.0,0.00010958,2]
[350444291,1737879502862,-2759.51,0.00010958,2]
[350444292,1737879502885,-500.0,0.00010958,2]
[350444293,1737879502909,-2759.51,0.00010958,2]
[350444294,1737879502934,-500.0,0.00010958,2]
[350444295,1737879502958,-2759.51,0.00010958,2]
[350444296,1737879502980,-500.0,0.00010958,2]
[350444297,1737879503004,-2759.51,0.00010958,2]
[350444298,1737879503027,-500.0,0.00010958,2]
[350444299,1737879503050,-2759.51,0.00010958,2]
[350444300,1737879503074,-500.0,0.00010958,2]
[350444301,1737879503099,-2759.51,0.00010958,2]
[350444302,1737879503123,-500.0,0.00010958,2]
[350444303,1737879503148,-2759.51,0.00010958,2]
[350444304,1737879503173,-500.0,0.00010958,2]
[350444305,1737879503196,-500.0,0.00010958,2]
[350444306,1737879503221,-2759.51,0.00010958,2]
[350444307,1737879503247,-500.0,0.00010958,2]
[350444308,1737879503273,-2759.51,0.00010958,2]
[350444309,1737879503297,-500.0,0.00010958,2]
[350444310,1737879503322,-2759.51,0.00010958,2]
[350444311,1737879503346,-500.0,0.00010958,2]
[350444312,1737879503370,-500.0,0.00010958,2]
[350444313,1737879503395,-2759.51,0.00010958,2]
[350444314,1737879503419,-475.36,0.00010958,2]
[350444315,1737879503443,-207.16,0.00010958,2]
[350444316,1737879503467,-2759.51,0.00010958,2]
[350444317,1737879503492,-2759.51,0.00010958,2]
[350444318,1737879503517,-2759.51,0.00010958,2]
[350444319,1737879503541,-2759.51,0.00010958,2]
[350444320,1737879503565,-2759.51,0.00010958,2]
[350444321,1737879503679,-2759.51,0.00010958,2]
[350444322,1737879503707,-2759.73836751,0.00010958,2]
[350444323,1737879503732,-500.0,0.00010958,2]
[350444324,1737879503758,-500.0,0.00010958,2]
[350444325,1737879503783,-500.0,0.00010958,2]
[350444326,1737879503809,-500.0,0.00010958,2]
[350444327,1737879503834,-569.6,0.00010958,2]
[350444328,1737879503859,-354.01753412,0.00010958,2]
[350444329,1737879503885,-919.19,0.00010958,2]
[350444330,1737879503909,-919.19,0.00010958,2]
[350444331,1737879503934,-919.19,0.00010958,2]
[350444332,1737879503959,-919.19,0.00010958,2]
[350444333,1737879503983,-919.19,0.00010958,2]
[350444334,1737879504007,-919.19,0.00010958,2]
[350444335,1737879504030,-500.0,0.00010958,2]
[350444336,1737879504054,-919.19,0.00010958,2]
[350444337,1737879504077,-500.0,0.00010958,2]
[350444338,1737879504100,-919.19,0.00010958,2]
[350444339,1737879504125,-500.0,0.00010958,2]
[350444340,1737879504149,-919.19,0.00010958,2]
[350444341,1737879504174,-572.01,0.00010958,2]
[350444342,1737879504198,-919.19,0.00010958,2]
[350444343,1737879504223,-919.19,0.00010958,2]
[350444344,1737879504246,-919.19,0.00010958,2]
[350444345,1737879504270,-919.19,0.00010958,2]
[350444346,1737879504294,-919.19,0.00010958,2]
[350444347,1737879504317,-919.19,0.00010958,2]
[350444348,1737879504340,-919.19,0.00010958,2]
[350444349,1737879504374,-919.19,0.00010958,2]
[350444350,1737879504399,-919.19,0.00010958,2]
[350444351,1737879504425,-919.19,0.00010958,2]
[350444352,1737879504451,-919.19,0.00010958,2]
[350444353,1737879504476,-919.19,0.00010958,2]
[350444354,1737879504500,-919.19,0.00010958,2]
[350444355,1737879504526,-3061.16,0.00010958,2]
[350444356,1737879504555,-919.19,0.00010958,2]
[350444357,1737879504581,-3061.16,0.00010958,2]
[350444358,1737879504604,-919.25607308,0.00010958,2]
[350444359,1737879504630,-3061.16,0.00010958,2]
[350444360,1737879504656,-3061.16,0.00010958,2]
[350444361,1737879504683,-3061.16,0.00010958,2]
[350444362,1737879504708,-3061.16,0.00010958,2]
[350444363,1737879504734,-500.0,0.00010958,2]
[350444364,1737879504759,-3061.16,0.00010958,2]
[350444365,1737879504785,-562.66262187,0.00010958,2]
[350444366,1737879504813,-637.00594602,0.00010958,2]
[350444367,1737879504839,-3061.16,0.00010958,2]
[350444368,1737879504863,-3061.16,0.00010958,2]
[350444369,1737879504888,-3061.16,0.00010958,2]
[350444370,1737879504914,-3061.16,0.00010958,2]
[350444371,1737879504941,-500.0,0.00010958,2]
[350444372,1737879505038,-500.0,0.00010958,2]
[350444373,1737879505078,-3061.16,0.00010958,2]
[350444374,1737879505103,-500.0,0.00010958,2]
[350444375,1737879505127,-3061.16,0.00010958,2]
[350444376,1737879505152,-500.0,0.00010958,2]
[350444377,1737879505178,-3061.16,0.00010958,2]
[350444378,1737879505203,-500.0,0.00010958,2]
[350444379,1737879505228,-3061.16,0.00010958,2]
[350444380,1737879505253,-500.0,0.00010958,2]
[350444381,1737879505277,-500.0,0.00010958,2]
[350444382,1737879505302,-3061.16,0.00010958,2]
[350444383,1737879505326,-500.0,0.00010958,2]
[350444384,1737879505350,-3061.16,0.00010958,2]
[350444385,1737879505374,-500.0,0.00010958,2]
[350444386,1737879505399,-338.36094453,0.00010958,2]
[350444387,1737879505425,-3061.16,0.00010958,2]
[350444388,1737879505451,-500.0,0.00010958,2]
[350444389,1737879505478,-626.92,0.00010958,2]
[350444390,1737879505504,-3061.16,0.00010958,2]
[350444391,1737879505530,-500.0,0.00010958,2]
[350444392,1737879505557,-3061.16,0.00010958,2]
[350444393,1737879505581,-500.0,0.00010958,2]
[350444394,1737879505620,-500.0,0.00010958,2]
[350444395,1737879505648,-500.0,0.00010958,2]
[350444396,1737879505677,-500.0,0.00010958,2]
[350444397,1737879505704,-3061.16,0.00010958,2]
[350444398,1737879505730,-500.0,0.00010958,2]
[350444399,1737879505756,-3061.16,0.00010958,2]
[350444400,1737879505784,-199.28687835,0.00010958,2]
[350444401,1737879505810,-3061.16,0.00010958,2]
[350444402,1737879505836,-500.0,0.00010958,2]
[350444403,1737879505863,-3061.36958037,0.00010958,2]
[350444404,1737879505891,-544.65,0.00010958,2]
[350444405,1737879505917,-500.0,0.00010958,2]
[350444406,1737879505949,-500.0,0.00010958,2]
[350444407,1737879505977,-500.0,0.00010958,2]
[350444408,1737879506003,-500.0,0.00010958,2]
[350444409,1737879506030,-500.0,0.00010958,2]
[350444410,1737879506055,-500.0,0.00010958,2]
[350444411,1737879506080,-500.0,0.00010958,2]
[350444412,1737879506104,-500.0,0.00010958,2]
[350444413,1737879506129,-278.04,0.00010958,2]
[350444414,1737879506152,-500.0,0.00010958,2]
[350444415,1737879506180,-500.0,0.00010958,2]
[350444416,1737879506203,-500.0,0.00010958,2]
[350444417,1737879506227,-257.89631484,0.00010958,2]
[350444418,1737879506254,-6178.51,0.00010958,2]
[350444419,1737879506281,-6178.51,0.00010958,2]
[350444420,1737879506307,-500.0,0.00010958,2]
[350444421,1737879506332,-6178.51,0.00010958,2]
[350444422,1737879506476,-500.0,0.00010958,2]
[350444423,1737879506504,-6178.51,0.00010958,2]
[350444424,1737879506529,-500.0,0.00010958,2]
[350444425,1737879506564,-6178.51,0.00010958,2]
[350444426,1737879506592,-6178.51,0.00010958,2]
[350444427,1737879506619,-6178.51,0.00010958,2]
[350444428,1737879506646,-1015.33,0.00010958,2]
[350444429,1737879506673,-6178.51,0.00010958,2]
[350444430,1737879506703,-6178.51,0.00010958,2]
[350444431,1737879506729,-1015.33,0.00010958,2]
[350444432,1737879506756,-6178.51,0.00010958,2]
[350444433,1737879506782,-1015.33,0.00010958,2]
[350444434,1737879506806,-1015.33,0.00010958,2]
[350444435,1737879506834,-6178.51,0.00010958,2]
[350444436,1737879506859,-1015.33,0.00010958,2]
[350444437,1737879506886,-6178.51,0.00010958,2]
[350444438,1737879506912,-1015.33,0.00010958,2]
[350444439,1737879506943,-6178.51,0.00010958,2]
[350444440,1737879506969,-1015.33,0.00010958,2]
[350444441,1737879506997,-6178.51,0.00010958,2]
[350444442,1737879507023,-1015.33,0.00010958,2]
[350444443,1737879507049,-6178.51,0.00010958,2]
[350444444,1737879507074,-1015.33,0.00010958,2]
[350444445,1737879507102,-800.05174592,0.00010958,2]
[350444446,1737879617241,165.66,8.045e-05,2]
[350444980,1737880045756,635.59,8.219e-05,2]
[350445082,1737880119176,150.0,0.0001052,5]
[350445094,1737880232221,-300.0,9.666e-05,2]
[350445095,1737880232231,-1000.0,9.863e-05,2]
[350445096,1737880232240,-865.7,9.92e-05,2]
[350445097,1737880232250,-9548.66441947,9.922e-05,2]
[350445098,1737880232259,-174.9,9.922e-05,2]
[350445099,1737880232269,-571.09,9.947e-05,2]
[350445100,1737880232278,-856.99,9.972e-05,2]
[350445101,1737880232287,-250.0,9.999e-05,2]
[350445102,1737880232298,-1049.04700026,0.0001,2]
[350445103,1737880232307,-1500.0,0.00010016,2]
[350445104,1737880232317,-438.48,0.00010041,2]
[350445105,1737880232327,-601.58519844,0.00010078,2]
[350445106,1737880232336,-250.0,0.00010123,2]
[350445107,1737880232345,-150.0,0.00010178,2]
[350445108,1737880232354,-982.04,0.00010178,2]
[350445109,1737880232363,-150.0,0.00010178,2]
[350445110,1737880232373,-150.0,0.00010178,2]
[350445111,1737880232382,-150.59,0.00010178,2]
[350445112,1737880232391,-1624.79,0.00010225,2]
[350445113,1737880232400,-250.0,0.00010291,2]
[350445114,1737880232410,-175.58,0.00010291,2]
[350445115,1737880232419,-445.02,0.00010341,2]
[350445116,1737880232430,-773.11,0.00010341,2]
[350445117,1737880232440,-3165.55,0.00010363,2]
[350445118,1737880232450,-150.0,0.00010377,2]
[350445119,1737880232459,-298.24,0.00010378,2]
[350445120,1737880232469,-150.0,0.00010378,2]
[350445121,1737880232479,-438.07,0.00010378,2]
[350445122,1737880232489,-150.0,0.00010378,2]
[350445123,1737880232498,-297.88,0.00010378,2]
[350445124,1737880232508,-685.76,0.00010378,2]
[350445125,1737880232518,-635.59,0.00010463,2]
[350445126,1737880232527,-773.77,0.00010548,2]
[350445127,1737880232537,-773.77,0.00010548,2]
[350445128,1737880232548,-420.0,0.00010632,2]
[350445129,1737880232557,-2017.3426,0.000107,2]
[350445130,1737880232567,-1000.0,0.000107,2]
[350445131,1737880232577,-510.1256711,0.00010738,2]
[350445132,1737880232586,-191.289,0.00010739,2]
[350445133,1737880232596,-216.83394386,0.00010799,2]
[350445134,1737880232606,-9732.09884069,0.000108,2]
[350445135,1737880232617,-2201.57792837,0.000108,2]
[350445136,1737880232646,-2661.82110246,0.000108,2]
[350445137,1737880235947,-199.92145247,0.000108,2]
[350445138,1737880236273,170.28,0.00016658,30]
[350445142,1737880238041,-536.95020059,9.617e-05,2]
[350445143,1737880238159,-626.508,9.617e-05,2]
[350445214,1737880240317,-21976.29976641,9.617e-05,2]
[350445215,1737880240327,-91930.05593782,0.000108,2]
[350445216,1737880240351,-357.2400007,0.000108,2]
[350445217,1737880240363,-317.120004,0.000108,2]
[350445218,1737880240374,-1227.639432,0.000108,2]
[350445219,1737880240406,-21845.71881835,0.000108,2]
[350445220,1737880240459,-435.85043033,0.000108,2]
[350445221,1737880240568,-38749.49512369,0.000108,2]
[350445223,1737880243058,-375.03231268,0.000108,2]
[350445623,1737880256556,-926.4808206,0.000108,2]
[350445624,1737880256607,-7779.9127975,0.000108,2]
[350445625,1737880256643,-1803.8,0.000108,2]
[350445626,1737880256655,-221196.45621682,0.000108,2]
[350445627,1737880311522,-155923.55602063,0.000108,2]
[350445628,1737880311537,-9359.46219701,0.000108,2]
[350445629,1737880311564,-419.48451,0.000108,2]
[350445630,1737880311575,-328.68581002,0.000108,2]
[350445631,1737880311586,-3790.14498279,0.000108,2]
[350445632,1737880311597,-3404.9,0.000108,2]
[350445633,1737880311616,-23378.63021544,0.000108,2]
[350445634,1737880311629,-3000.0,0.0001085,2]
[350445635,1737880311638,-151.00937162,0.00010858,2]
[350445636,1737880311648,-5000.0,0.00010858,2]
[350445637,1737880311657,-815.13,0.00010858,2]
[350445638,1737880311666,-4818.18271772,0.00010913,2]
[350445639,1737880311675,-23584.5583168,0.00010924,2]
[350445643,1737880728094,165.66,8.001e-05,2]
[350445646,1737881009398,606.24,8.219e-05,2]
[350445648,1737881136925,170.28,0.00016658,30]
[350445667,1737881432254,-250.0,9.767e-05,2]
[350445668,1737881432263,-6217.61,9.767e-05,2]
[350445669,1737881432272,-956.96,9.793e-05,2]
[350445670,1737881432281,-23890.0,9.878e-05,2]
[350445671,1737881432291,-1000.0,9.912e-05,2]
[350445672,1737881432300,-200.1,9.967e-05,2]
[350445673,1737881432309,-250.0,9.99e-05,2]
[350445674,1737881432318,-175.63,0.00010053,2]
[350445675,1737881432328,-171.25,0.00010077,2]
[350445676,1737881432338,-250.0,0.00010108,2]
[350445677,1737881432347,-246.21,0.00010137,2]
[350445678,1737881432356,-773.77,0.00010341,2]
[350445679,1737881432364,-193.12,0.00010403,2]
[350445680,1737881432374,-150.0,0.00010411,2]
[350445681,1737881432383,-1500.0,0.00010427,2]
[350445682,1737881432392,-773.77,0.00010441,2]
[350445683,1737881432401,-606.24,0.00010472,2]
[350445684,1737881432411,-255.0628356,0.00010738,2]
[350445685,1737881432420,-298.15,0.000108,2]
[350445686,1737881432429,-438.07,0.000108,2]
[350445687,1737881432438,-601.58519843,0.000108,2]
[350445688,1737881432447,-809.7769,0.00010851,2]
[350445689,1737881432456,-181.22079131,0.00010858,2]
[350445690,1737881432465,-166.7653668,0.00010858,2]
[350445691,1737881432474,-151.00937162,0.00010858,2]
[350445692,1737881432483,-473.29022578,0.00010858,2]
[350445693,1737881432491,-9185.3058,0.00010858,2]
[350445694,1737881432500,-150.0,0.00010877,2]
[350445695,1737881432510,-2177.37581377,0.00010924,2]
[350445710,1737881432850,-15981.06000001,0.00010924,2]
[350445713,1737881432863,-500.0,0.00010924,2]
[350445846,1737881438274,-3233.25969375,0.00010924,2]
[350445847,1737881438284,-3000.0,0.00010924,2]
[350445848,1737881438294,-150.0,0.00010929,2]
[350445849,1737881438303,-22434.31471249,0.0001093,2]
[350445850,1737881438315,-32529.34064349,0.0001093,2]
[350445851,1737881438326,-11291.99679093,0.0001093,2]
[350445852,1737881438340,-8210.48675946,0.0001093,2]
[350445853,1737881438352,-1030.5,0.0001093,2]
[350445854,1737881438372,-544.38170658,0.0001093,2]
[350445855,1737881438384,-7676.77555655,0.0001093,2]
[350445856,1737881438433,-852.99136144,0.0001093,2]
[350446039,1737881440229,-1219.61553686,0.0001093,2]
[350446045,1737881440283,-564.02417976,0.0001093,2]
[350446047,1737881440295,-651.0,0.0001093,2]
[350446050,1737881440306,-1562.911588,0.0001093,2]
[350446065,1737881440445,-918.7,0.0001093,2]
[350446078,1737881440549,-20121.97608475,0.0001093,2]
[350446080,1737881440561,-458.59552097,0.0001093,2]
[350446200,1737881443784,-2000.0,0.0001093,2]
[350446201,1737881443889,-8020.0,0.0001093,2]
[350446202,1737881443944,-652.519868,0.0001093,2]
[350446203,1737881443954,-129150.65307533,0.0001093,2]
[350446204,1737881443965,-21556.0,0.0001093,2]
[350446205,1737881444116,-1327.8094939,0.00010768,2]
[350446206,1737881444126,-1936.62883445,0.0001093,2]
[350446207,1737881444139,-526.6,0.0001093,2]
[350446208,1737881444150,-94923.14340669,0.0001093,2]
[350446286,1737881446300,-2205.04003108,0.0001093,2]
[350446287,1737881446354,-521.23940001,0.0001093,2]
[350446288,1737881446365,-540.441375,0.0001093,2]
[350446289,1737881446376,-394.72,0.0001093,2]
[350446290,1737881446387,-564.838625,0.0001093,2]
[350446308,1737881461977,-250.0,0.00010423,2]
[350446309,1737881461989,-12568.32659914,0.0001093,2]
[350446310,1737881462472,-5098.86036291,0.0001093,2]
[350446311,1737881462487,-1269.208833,0.0001093,2]
[350446315,1737881630582,171.12,8.041e-05,2]
[350446316,1737881666543,340.91682436,0.00022,120]
[350446320,1737882000902,585.06,8.219e-05,2]
[350446321,1737882103522,170.28,0.00016658,30]
[350446341,1737882631661,-250.0,9.636e-05,2]
[350446342,1737882631671,-250.0,9.704e-05,2]
[350446343,1737882631681,-623.05,9.741e-05,2]
[350446344,1737882631693,-258.27,9.833e-05,2]
[350446345,1737882631704,-300.0,9.858e-05,2]
[350446346,1737882631714,-23900.0,9.859e-05,2]
[350446347,1737882631724,-2331.78,9.883e-05,2]
[350446348,1737882631734,-1000.0,9.934e-05,2]
[350446349,1737882631744,-250.0,9.944e-05,2]
[350446350,1737882631754,-514.17,9.993e-05,2]
[350446351,1737882631764,-1585.96,0.00010018,2]
[350446352,1737882631773,-174.65,0.00010026,2]
[350446353,1737882631783,-170.04,0.00010137,2]
[350446354,1737882631793,-309.29,0.00010137,2]
[350446355,1737882631802,-150.0,0.00010278,2]
[350446356,1737882631812,-874.94,0.00010378,2]
[350446357,1737882631821,-300.0,0.00010411,2]
[350446358,1737882631831,-193.12,0.0001046,2]
[350446359,1737882631840,-585.06,0.00010472,2]
[350446360,1737882631851,-150.0,0.000105,2]
[350446361,1737882631861,-12309.0,0.00010526,2]
[350446362,1737882631871,-526.40645768,0.00010585,2]
[350446363,1737882631880,-438.07,0.00010685,2]
[350446364,1737882631890,-150.0,0.00010699,2]
[350446365,1737882631902,-266.1556,0.000107,2]
[350446366,1737882631911,-2562.2818,0.000107,2]
[350446367,1737882631920,-5210.8797,0.000107,2]
[350446369,1737882631930,-1793.2509,0.000107,2]
[350446371,1737882631939,-255.0628356,0.00010738,2]
[350446373,1737882631948,-1048.0,0.00010739,2]
[350446375,1737882631958,-48612.71390671,0.000108,2]
[350446377,1737882631971,-5638.446885,0.000108,2]
[350446379,1737882631983,-95405.20662076,0.000108,2]
[350446380,1737882631993,-500.0,0.0001083,2]
[350446381,1737882632002,-300.0,0.00010844,2]
[350446382,1737882632011,-181.22079131,0.00010858,2]
[350446383,1737882632021,-1254.073,0.00010858,2]
[350446385,1737882632029,-184.0415643,0.00010858,2]
[350446386,1737882632039,-866.52410308,0.00010858,2]
[350446387,1737882632048,-261.15649964,0.00010858,2]
[350446388,1737882632058,-8105.8813,0.00010858,2]
[350446389,1737882632067,-182.36,0.00010858,2]
[350446390,1737882632076,-1845.5384,0.00010858,2]
[350446391,1737882632086,-5433.92308903,0.000109,2]
[350446392,1737882632096,-438.07,0.000109,2]
[350446393,1737882632106,-300.0,0.000109,2]
[350446394,1737882632115,-150.0,0.000109,2]
[350446395,1737882632125,-2410.49,0.0001091,2]
[350446396,1737882632135,-24452.24467024,0.00010913,2]
[350446397,1737882632144,-24452.24467024,0.00010916,2]
[350446398,1737882632155,-5052.177364,0.00010917,2]
[350446399,1737882632165,-1948.83863524,0.00010917,2]
[350446400,1737882632175,-200.0,0.00010917,2]
[350446401,1737882632184,-200.0,0.00010917,2]
[350446402,1737882632194,-200.0,0.00010918,2]
[350446403,1737882632203,-200.0,0.00010926,2]
[350446404,1737882632213,-1371.42639532,0.0001093,2]
[350446405,1737882632264,-340.44058953,0.0001093,2]
[350446406,1737882632276,-15756.0,0.0001093,2]
[350446407,1737882632288,-2033.21476704,0.0001093,2]
[350446408,1737882632297,-3000.0,0.0001093,2]
[350446409,1737882632307,-191.07994174,0.0001093,2]
[350446410,1737882632317,-200.0,0.00010931,2]
[350446411,1737882632326,-453.14719376,0.00010937,2]
[350446412,1737882632337,-200.0,0.00010938,2]
[350446413,1737882632347,-846.57848881,0.00010939,2]
[350446414,1737882632356,-200.0,0.00010939,2]
[350446415,1737882632366,-200.0,0.0001094,2]
[350446416,1737882632375,-4818.18271772,0.00010942,2]
[350446417,1737882632385,-455.12613114,0.00010942,2]
[350446418,1737882632394,-453.14719376,0.00010946,2]
[350446419,1737882632404,-16843.79789664,0.00010947,2]
[350446423,1737882637496,-1391.32276635,0.00010947,2]
[350446424,1737882637508,-27241.13316134,0.00010947,2]
[350446425,1737882637517,-1598.3420597,0.00010948,2]
[350446426,1737882637527,-1519.8334014,0.00010948,2]
[350446427,1737882637539,-78.5086583,0.00010948,2]
[350446428,1737882637549,-455.12613114,0.00010949,2]
[350446429,1737882637558,-453.14719376,0.00010949,2]
[350446430,1737882637568,-500.07279853,0.00010949,2]
[350446431,1737882637579,-30.52192997,0.00010949,2]
[350446432,1737882637589,-1748.4651768,0.00010949,2]
[350446433,1737882637599,-453.14719376,0.0001095,2]
[350446434,1737882637607,-184.80689947,0.00010951,2]
[350446435,1737882637619,-268.34029429,0.00010951,2]
[350446436,1737882637628,-59.42123862,0.00010951,2]
[350446437,1737882637639,-473.53407318,0.00010951,2]
[350446438,1737882637648,-1756.2439906,0.00010951,2]
[350446439,1737882637658,-846.57848881,0.00010952,2]
[350446440,1737882637667,-4818.18271772,0.00010953,2]
[350446441,1737882637676,-1032.07620957,0.00010953,2]
[350446442,1737882637695,-3000.20374996,0.00010953,2]
[350446443,1737882637706,-2323.49265339,0.00010953,2]
[350446444,1737882637726,-18096.47205732,0.00010953,2]
[350446445,1737882637735,-846.57848881,0.00010953,2]
[350446446,1737882637745,-5052.177364,0.00010955,2]
[350446447,1737882637754,-200.0,0.00010956,2]
[350446449,1737882637763,-500.0,0.00010957,2]
[350446451,1737882637773,-581.0,0.00010958,2]
[350446452,1737882637782,-354.90701174,0.00010958,2]
[350446453,1737882637794,-9494.3917586,0.00010958,2]
[350446606,1737882639417,-414.255045,0.00010858,2]
[350446626,1737882639597,-40.73653316,0.00010858,2]
[350446628,1737882639607,-1120.59487591,0.00010958,2]
[350446646,1737882639764,-1048.0,0.00010958,2]
[350446668,1737882642479,-1954.4642,0.00010858,2]
[350446669,1737882642490,-521.0,0.00010958,2]
[350446670,1737882642499,-1953.19579998,0.00010958,2]
[350446671,1737882642586,-20042.725,0.00010958,2]
[350446679,1737882645343,-173.28527875,0.00010713,2]
[350446680,1737882645353,-256.17569629,0.000109,2]
[350446681,1737882645362,-6.02901996,0.00010958,2]
[350446682,1737882645398,-336.61,0.00010958,2]
[350446683,1737882645461,-1124.15913666,0.00010958,2]
[350446684,1737882645563,-9995.64122148,0.00010958,2]
[350446685,1737882645573,-151.0,0.00010958,2]
[350446686,1737882645583,-151.0,0.00010958,2]
[350446687,1737882645592,-151.0,0.00010958,2]
[350446688,1737882645603,-5.95394753,0.00010958,2]
[350446689,1737882645632,-145.04605247,0.00010958,2]
[350446690,1737882645641,-151.0,0.00010958,2]
[350446691,1737882645650,-151.0,0.00010958,2]
[350446692,1737882645660,-151.0,0.00010958,2]
[350446693,1737882645670,-151.0,0.00010958,2]
[350446694,1737882645679,-151.0,0.00010958,2]
[350446695,1737882645688,-151.0,0.00010958,2]
[350446696,1737882645697,-151.0,0.00010958,2]
[350446697,1737882645706,-151.0,0.00010958,2]
[350446698,1737882645715,-151.0,0.00010958,2]
[350446699,1737882645725,-151.0,0.00010958,2]
[350446700,1737882645734,-151.0,0.00010958,2]
[350446701,1737882645743,-151.0,0.00010958,2]
[350446702,1737882645752,-151.0,0.00010958,2]
[350446703,1737882645761,-151.0,0.00010958,2]
[350446704,1737882645771,-151.0,0.00010958,2]
[350446705,1737882645780,-151.0,0.00010958,2]
[350446706,1737882645789,-151.0,0.00010958,2]
[350446707,1737882645799,-151.0,0.00010958,2]
[350446708,1737882645808,-151.0,0.00010958,2]
[350446709,1737882645817,-151.0,0.00010958,2]
[350446710,1737882645826,-151.0,0.00010958,2]
[350446711,1737882645835,-151.0,0.00010958,2]
[350446712,1737882645846,-151.0,0.00010958,2]
[350446713,1737882645856,-151.0,0.00010958,2]
[350446714,1737882645865,-151.0,0.00010958,2]
[350446715,1737882645875,-151.0,0.00010958,2]
[350446716,1737882645884,-151.0,0.00010958,2]
[350446718,1737882645892,-151.0,0.00010958,2]
[350446720,1737882645901,-151.0,0.00010958,2]
[350446721,1737882645911,-151.0,0.00010958,2]
[350446723,1737882645920,-151.0,0.00010958,2]
[350446725,1737882645929,-151.0,0.00010958,2]
[350446726,1737882645938,-151.0,0.00010958,2]
[350446728,1737882645948,-114.95394753,0.00010958,2]
[350446742,1737882646097,-36.04605247,0.00010958,2]
[350446744,1737882646107,-151.0,0.00010958,2]
[350446746,1737882646116,-151.0,0.00010958,2]
[350446748,1737882646125,-151.0,0.00010958,2]
[350446750,1737882646135,-91.53110933,0.00010958,2]
[350446752,1737882646148,-59.46889067,0.00010958,2]
[350446754,1737882646157,-151.0,0.00010958,2]
[350446755,1737882646166,-151.0,0.00010958,2]
[350446757,1737882646176,-151.0,0.00010958,2]
[350446759,1737882646185,-151.0,0.00010958,2]
[350446761,1737882646194,-151.0,0.00010958,2]
[350446763,1737882646203,-151.0,0.00010958,2]
[350446764,1737882646213,-151.0,0.00010958,2]
[350446766,1737882646222,-151.0,0.00010958,2]
[350446768,1737882646231,-151.0,0.00010958,2]